[Event "Early-Titled-Tuesday-Blitz-April-02-2024"]
[Site "Chess.com"]
[Date "2024.04.02"]
[Round "3"]
[White "GrotBchess"]
[Black "djokovic74"]
[Result "0-1"]
[WhiteElo "2452"]
[BlackElo "2754"]
[TimeControl "180+1"]
[EndTime "8:28:23 PDT"]
[Termination "djokovic74 won by checkmate"]

1. e4 {[%clk 0:03:00.9]} 1... e6 {[%clk 0:03:00]} 2. d4 {[%clk 0:03:00.3]} 2...
d5 {[%clk 0:03:00.2]} 3. Nc3 {[%clk 0:03:00.3]} 3... Nf6 {[%clk 0:02:59.8]} 4.
e5 {[%clk 0:02:59.7]} 4... Nfd7 {[%clk 0:02:59.9]} 5. f4 {[%clk 0:03:00.3]} 5...
c5 {[%clk 0:02:59.3]} 6. Nf3 {[%clk 0:03:00.8]} 6... Nc6 {[%clk 0:03:00]} 7. Be3
{[%clk 0:03:00.9]} 7... cxd4 {[%clk 0:02:59.6]} 8. Nxd4 {[%clk 0:03:00.8]} 8...
Bc5 {[%clk 0:03:00.4]} 9. Qd2 {[%clk 0:02:58.7]} 9... O-O {[%clk 0:02:59.3]} 10.
O-O-O {[%clk 0:02:57.2]} 10... Bxd4 {[%clk 0:02:48.1]} 11. Bxd4 {[%clk
0:02:58.1]} 11... a6 {[%clk 0:02:44.5]} 12. h4 {[%clk 0:02:52.9]} 12... b5
{[%clk 0:02:43.5]} 13. h5 {[%clk 0:02:51.1]} 13... b4 {[%clk 0:02:43.1]} 14. Ne2
{[%clk 0:02:47.3]} 14... Qa5 {[%clk 0:02:38.9]} 15. Kb1 {[%clk 0:02:45.9]} 15...
Nc5 {[%clk 0:02:07.6]} 16. Nc1 {[%clk 0:02:43.3]} 16... Ne4 {[%clk 0:02:05.4]}
17. Qe3 {[%clk 0:02:42.6]} 17... Rb8 {[%clk 0:02:00.1]} 18. Bd3 {[%clk
0:02:41.3]} 18... Nxd4 {[%clk 0:01:25.8]} 19. Qxd4 {[%clk 0:02:42.2]} 19... Bb7
{[%clk 0:01:26.2]} 20. Nb3 {[%clk 0:02:32.1]} 20... Qc7 {[%clk 0:01:19.9]} 21.
g4 {[%clk 0:02:26.9]} 21... a5 {[%clk 0:01:18]} 22. Bxe4 {[%clk 0:02:11.1]}
22... dxe4 {[%clk 0:01:16.8]} 23. Qd6 {[%clk 0:02:10.8]} 23... Qxd6 {[%clk
0:00:57.9]} 24. exd6 {[%clk 0:02:10.6]} 24... Bd5 {[%clk 0:00:51.7]} 25. Nxa5
{[%clk 0:01:57.3]} 25... Rfd8 {[%clk 0:00:49.7]} 26. Rhe1 {[%clk 0:01:56.9]}
26... Rxd6 {[%clk 0:00:46.7]} 27. Nb3 {[%clk 0:01:30.8]} 27... Ra6 {[%clk
0:00:43.7]} 28. Rd4 {[%clk 0:01:22.8]} 28... h6 {[%clk 0:00:34.1]} 29. Re3
{[%clk 0:01:14.5]} 29... Kh7 {[%clk 0:00:27.2]} 30. Nc1 {[%clk 0:00:54.1]} 30...
Rc6 {[%clk 0:00:21.2]} 31. Ne2 {[%clk 0:00:41.4]} 31... Ra6 {[%clk 0:00:20.1]}
32. Nc1 {[%clk 0:00:40.5]} 32... Rc6 {[%clk 0:00:16.4]} 33. Ne2 {[%clk
0:00:40.1]} 33... Rbc8 {[%clk 0:00:16.3]} 34. c3 {[%clk 0:00:34.4]} 34... Ra6
{[%clk 0:00:15.9]} 35. Rxb4 {[%clk 0:00:31.1]} 35... Bxa2+ {[%clk 0:00:12.4]}
36. Kc2 {[%clk 0:00:28]} 36... Bd5 {[%clk 0:00:13.1]} 37. Ng3 {[%clk 0:00:24]}
37... Ra1 {[%clk 0:00:08.9]} 38. Nxe4 {[%clk 0:00:21.1]} 38... Rg1 {[%clk
0:00:09.7]} 39. Ng3 {[%clk 0:00:12.6]} 39... Rg2+ {[%clk 0:00:09.1]} 40. Kc1
{[%clk 0:00:10.4]} 40... Ra8 {[%clk 0:00:08.2]} 41. Kb1 {[%clk 0:00:05.7]} 41...
Ba2+ {[%clk 0:00:08.5]} 42. Kc1 {[%clk 0:00:05.4]} 42... Bb3 {[%clk 0:00:07.3]}
43. Ne2 {[%clk 0:00:01.1]} 43... Ra1+ {[%clk 0:00:06.7]} 44. Kd2 {[%clk
0:00:01.7]} 44... Rd1# {[%clk 0:00:07.3]} 0-1

[Event "Early-Titled-Tuesday-Blitz-April-02-2024"]
[Site "Chess.com"]
[Date "2024.04.02"]
[Round "3"]
[White "whiteglovethief"]
[Black "Aygehovit1992"]
[Result "1-0"]
[WhiteElo "2554"]
[BlackElo "2838"]
[TimeControl "180+1"]
[EndTime "8:28:23 PDT"]
[Termination "whiteglovethief won by resignation"]

1. d4 {[%clk 0:03:00.9]} 1... Nf6 {[%clk 0:02:57.1]} 2. c4 {[%clk 0:03:01.4]}
2... g6 {[%clk 0:02:57.4]} 3. Nc3 {[%clk 0:03:00.3]} 3... Bg7 {[%clk 0:02:58]}
4. e4 {[%clk 0:02:59.6]} 4... d6 {[%clk 0:02:58.6]} 5. Nf3 {[%clk 0:02:59.5]}
5... O-O {[%clk 0:02:58.3]} 6. Be2 {[%clk 0:02:59.4]} 6... Na6 {[%clk
0:02:58.8]} 7. O-O {[%clk 0:02:57.9]} 7... e5 {[%clk 0:02:59.4]} 8. Be3 {[%clk
0:02:54.2]} 8... Qe7 {[%clk 0:02:57.6]} 9. Nd5 {[%clk 0:02:51.7]} 9... Qe8
{[%clk 0:02:48.6]} 10. dxe5 {[%clk 0:02:43.4]} 10... dxe5 {[%clk 0:02:45.4]} 11.
Nxf6+ {[%clk 0:02:39.4]} 11... Bxf6 {[%clk 0:02:42.8]} 12. c5 {[%clk 0:02:40.3]}
12... Nb4 {[%clk 0:02:29.8]} 13. a3 {[%clk 0:02:34.5]} 13... Nc6 {[%clk
0:02:30]} 14. b4 {[%clk 0:02:33.3]} 14... Bg4 {[%clk 0:02:30.1]} 15. Bb5 {[%clk
0:02:22.3]} 15... Rd8 {[%clk 0:02:27.2]} 16. Qa4 {[%clk 0:02:20.9]} 16... Bxf3
{[%clk 0:02:23.2]} 17. Bxc6 {[%clk 0:02:19]} 17... bxc6 {[%clk 0:02:21.7]} 18.
gxf3 {[%clk 0:02:19.1]} 18... Qe6 {[%clk 0:02:16.6]} 19. Rfd1 {[%clk 0:02:17.2]}
19... Qh3 {[%clk 0:02:14.4]} 20. Qxc6 {[%clk 0:02:13.7]} 20... Rxd1+ {[%clk
0:02:11.7]} 21. Rxd1 {[%clk 0:02:12.1]} 21... Qxf3 {[%clk 0:02:12.1]} 22. Rd7
{[%clk 0:02:01.4]} 22... h5 {[%clk 0:02:09.9]} 23. Bh6 {[%clk 0:01:45.4]} 23...
Bh4 {[%clk 0:01:41]} 24. Rd2 {[%clk 0:01:08.6]} 24... Bg5 {[%clk 0:01:31.8]} 25.
Bxg5 {[%clk 0:00:55.5]} 25... Qg4+ {[%clk 0:01:31.7]} 26. Kf1 {[%clk 0:00:55.7]}
26... Qxg5 {[%clk 0:01:32.4]} 27. Rd3 {[%clk 0:00:46]} 27... Qf4 {[%clk
0:01:22.8]} 28. Ke2 {[%clk 0:00:39.2]} 28... Kg7 {[%clk 0:01:12.8]} 29. Rf3
{[%clk 0:00:33.9]} 29... Qh4 {[%clk 0:01:02.6]} 30. Qd5 {[%clk 0:00:23.3]} 30...
f6 {[%clk 0:00:56.8]} 31. h3 {[%clk 0:00:20.9]} 31... Rf7 {[%clk 0:00:56.3]} 32.
c6 {[%clk 0:00:20.8]} 32... Qg5 {[%clk 0:00:50.1]} 33. Rd3 {[%clk 0:00:15.7]}
33... Qg2 {[%clk 0:00:45.7]} 34. Qc4 {[%clk 0:00:14.4]} 34... f5 {[%clk
0:00:18.4]} 35. Rd7 {[%clk 0:00:14.4]} 35... Qxe4+ {[%clk 0:00:18.3]} 36. Qxe4
{[%clk 0:00:14.6]} 36... fxe4 {[%clk 0:00:19.2]} 37. Ke3 {[%clk 0:00:14.6]}
37... g5 {[%clk 0:00:14.9]} 38. Kxe4 {[%clk 0:00:12.5]} 38... Kg6 {[%clk
0:00:12]} 39. Rxf7 {[%clk 0:00:12.6]} 39... Kxf7 {[%clk 0:00:12.9]} 40. Kxe5
{[%clk 0:00:13.1]} 40... Kg6 {[%clk 0:00:13]} 41. b5 {[%clk 0:00:11.8]} 41...
Kf7 {[%clk 0:00:05.8]} 42. Kf5 {[%clk 0:00:10.5]} 42... g4 {[%clk 0:00:06.1]}
43. hxg4 {[%clk 0:00:10.4]} 43... hxg4 {[%clk 0:00:07]} 44. Kxg4 {[%clk
0:00:10.6]} 44... Ke6 {[%clk 0:00:07.6]} 45. f4 {[%clk 0:00:11.3]} 45... Kd5
{[%clk 0:00:07]} 46. f5 {[%clk 0:00:11.9]} 46... a6 {[%clk 0:00:06]} 47. bxa6
{[%clk 0:00:11.1]} 47... Kxc6 {[%clk 0:00:06.6]} 48. a7 {[%clk 0:00:11.2]} 48...
Kb7 {[%clk 0:00:07]} 49. f6 {[%clk 0:00:12]} 1-0

[Event "Early-Titled-Tuesday-Blitz-April-02-2024"]
[Site "Chess.com"]
[Date "2024.04.02"]
[Round "3"]
[White "Bykov_Egor"]
[Black "JosefineHeinemann"]
[Result "1/2-1/2"]
[WhiteElo "2655"]
[BlackElo "2502"]
[TimeControl "180+1"]
[EndTime "8:28:24 PDT"]
[Termination "Game drawn by repetition"]

1. e4 {[%clk 0:02:59.4]} 1... e5 {[%clk 0:02:58.3]} 2. Nf3 {[%clk 0:02:59.1]}
2... Nc6 {[%clk 0:02:57.3]} 3. Bc4 {[%clk 0:02:58]} 3... Bc5 {[%clk 0:02:55.5]}
4. c3 {[%clk 0:02:57.9]} 4... Nf6 {[%clk 0:02:54.7]} 5. d4 {[%clk 0:02:58.6]}
5... exd4 {[%clk 0:02:54.1]} 6. e5 {[%clk 0:02:59.3]} 6... d5 {[%clk 0:02:53.6]}
7. Bb5 {[%clk 0:02:59.9]} 7... Ne4 {[%clk 0:02:53.8]} 8. cxd4 {[%clk 0:03:00.4]}
8... Bb6 {[%clk 0:02:54.1]} 9. Nc3 {[%clk 0:02:59.4]} 9... O-O {[%clk
0:02:50.8]} 10. Be3 {[%clk 0:02:59.3]} 10... Bg4 {[%clk 0:02:50.2]} 11. h3
{[%clk 0:02:57.5]} 11... Bh5 {[%clk 0:02:49.3]} 12. Qc2 {[%clk 0:02:56.3]} 12...
f6 {[%clk 0:02:41.1]} 13. Bxc6 {[%clk 0:01:40.6]} 13... bxc6 {[%clk 0:02:28.9]}
14. Nxe4 {[%clk 0:01:40.6]} 14... dxe4 {[%clk 0:02:25.8]} 15. Qxe4 {[%clk
0:01:36.5]} 15... Bxf3 {[%clk 0:01:51.4]} 16. gxf3 {[%clk 0:01:34.2]} 16... fxe5
{[%clk 0:01:48]} 17. dxe5 {[%clk 0:01:19.1]} 17... Bxe3 {[%clk 0:01:40.9]} 18.
fxe3 {[%clk 0:01:18.3]} 18... Rb8 {[%clk 0:01:37.9]} 19. b3 {[%clk 0:01:01.1]}
19... Rb5 {[%clk 0:01:22.3]} 20. e6 {[%clk 0:00:44]} 20... Qf6 {[%clk
0:01:03.9]} 21. O-O {[%clk 0:00:14.5]} 21... Re5 {[%clk 0:01:00.8]} 22. Qc4
{[%clk 0:00:13.3]} 22... Rxe6 {[%clk 0:00:58]} 23. Rad1 {[%clk 0:00:10.6]} 23...
Kh8 {[%clk 0:00:57.6]} 24. Qd4 {[%clk 0:00:09]} 24... Qg5+ {[%clk 0:00:53.4]}
25. Kh1 {[%clk 0:00:09.3]} 25... Qxe3 {[%clk 0:00:41.8]} 26. Qg4 {[%clk
0:00:07.9]} 26... Rg6 {[%clk 0:00:32.3]} 27. Qe4 {[%clk 0:00:07.6]} 27... Qxe4
{[%clk 0:00:13.6]} 28. fxe4 {[%clk 0:00:08.5]} 28... Rxf1+ {[%clk 0:00:13.7]}
29. Rxf1 {[%clk 0:00:09.4]} 29... Kg8 {[%clk 0:00:14.5]} 30. Rf5 {[%clk
0:00:07.2]} 30... Re6 {[%clk 0:00:14.4]} 31. Ra5 {[%clk 0:00:05.8]} 31... Rxe4
{[%clk 0:00:14]} 32. Rxa7 {[%clk 0:00:06.4]} 32... Re2 {[%clk 0:00:13.6]} 33.
Rxc7 {[%clk 0:00:05.6]} 33... Rxa2 {[%clk 0:00:13.5]} 34. Rxc6 {[%clk
0:00:06.3]} 34... Rb2 {[%clk 0:00:13.9]} 35. Rb6 {[%clk 0:00:07]} 35... g5
{[%clk 0:00:14.1]} 36. Rb7 {[%clk 0:00:06.4]} 36... h5 {[%clk 0:00:14.3]} 37.
Rb4 {[%clk 0:00:05.7]} 37... Kf7 {[%clk 0:00:13.7]} 38. Rb6 {[%clk 0:00:06.2]}
38... Kg7 {[%clk 0:00:13.9]} 39. Kg1 {[%clk 0:00:06.5]} 39... g4 {[%clk
0:00:14]} 40. hxg4 {[%clk 0:00:05.6]} 40... hxg4 {[%clk 0:00:14.9]} 41. Rb4
{[%clk 0:00:05.9]} 41... Kf6 {[%clk 0:00:14.6]} 42. Rf4+ {[%clk 0:00:06.1]}
42... Kg5 {[%clk 0:00:13.9]} 43. Rf2 {[%clk 0:00:06.3]} 43... Rxb3 {[%clk
0:00:13.6]} 44. Kg2 {[%clk 0:00:06.8]} 44... Kh4 {[%clk 0:00:14.1]} 45. Ra2
{[%clk 0:00:06.4]} 45... Rc3 {[%clk 0:00:13.4]} 46. Rb2 {[%clk 0:00:06.4]} 46...
Rd3 {[%clk 0:00:13.6]} 47. Ra2 {[%clk 0:00:06.8]} 47... Rc3 {[%clk 0:00:13.8]}
48. Rb2 {[%clk 0:00:07.4]} 48... Rd3 {[%clk 0:00:14.1]} 49. Ra2 {[%clk
0:00:08.1]} 49... Rc3 {[%clk 0:00:14.4]} 1/2-1/2

[Event "Early-Titled-Tuesday-Blitz-April-02-2024"]
[Site "Chess.com"]
[Date "2024.04.02"]
[Round "3"]
[White "Orphanator2009"]
[Black "javierfreilemartin"]
[Result "1-0"]
[WhiteElo "2534"]
[BlackElo "2305"]
[TimeControl "180+1"]
[EndTime "8:28:24 PDT"]
[Termination "Orphanator2009 won by resignation"]

1. e4 {[%clk 0:03:00.9]} 1... c5 {[%clk 0:02:59.2]} 2. Nf3 {[%clk 0:03:00.9]}
2... d6 {[%clk 0:02:59.4]} 3. d4 {[%clk 0:03:01.1]} 3... cxd4 {[%clk 0:02:59.6]}
4. Nxd4 {[%clk 0:03:02]} 4... Nf6 {[%clk 0:02:59.3]} 5. Nc3 {[%clk 0:03:02.5]}
5... a6 {[%clk 0:02:59.4]} 6. f3 {[%clk 0:03:02.1]} 6... e6 {[%clk 0:02:58.7]}
7. Be3 {[%clk 0:02:59.4]} 7... h5 {[%clk 0:02:58.1]} 8. Qd2 {[%clk 0:02:59.5]}
8... Bd7 {[%clk 0:02:57.3]} 9. O-O-O {[%clk 0:02:56.3]} 9... Nc6 {[%clk
0:02:57.3]} 10. Bc4 {[%clk 0:02:54.2]} 10... Rc8 {[%clk 0:02:56.7]} 11. Bb3
{[%clk 0:02:54.6]} 11... b5 {[%clk 0:02:50.5]} 12. Nxc6 {[%clk 0:02:31.4]} 12...
Rxc6 {[%clk 0:02:38]} 13. Rhe1 {[%clk 0:02:28.2]} 13... Qc7 {[%clk 0:02:37.3]}
14. Nd5 {[%clk 0:02:14.3]} 14... Qb7 {[%clk 0:02:29.4]} 15. Bg5 {[%clk 0:02:01]}
15... Nh7 {[%clk 0:02:21.2]} 16. Bf4 {[%clk 0:01:51.5]} 16... Rc5 {[%clk
0:02:11.1]} 17. Ne3 {[%clk 0:01:32]} 17... Rc6 {[%clk 0:01:52.2]} 18. Nd5 {[%clk
0:01:03]} 18... Rc5 {[%clk 0:01:48.2]} 19. Nc3 {[%clk 0:01:00.1]} 19... Rc6
{[%clk 0:01:21.2]} 20. Bd5 {[%clk 0:00:57.1]} 20... e5 {[%clk 0:01:17.2]} 21.
Be3 {[%clk 0:00:48.4]} 21... Nf6 {[%clk 0:01:11.3]} 22. Bxc6 {[%clk 0:00:42.4]}
22... Bxc6 {[%clk 0:01:11.3]} 23. Bg5 {[%clk 0:00:37.7]} 23... b4 {[%clk
0:01:09.3]} 24. Nd5 {[%clk 0:00:27]} 24... Nxd5 {[%clk 0:01:08.8]} 25. exd5
{[%clk 0:00:27.9]} 25... Bd7 {[%clk 0:01:07]} 26. f4 {[%clk 0:00:23.8]} 26... f6
{[%clk 0:01:06.1]} 27. Bh4 {[%clk 0:00:23.7]} 27... Bg4 {[%clk 0:00:55.6]} 28.
fxe5 {[%clk 0:00:24]} 28... dxe5 {[%clk 0:00:52.6]} 29. d6 {[%clk 0:00:20.2]}
29... Bxd1 {[%clk 0:00:42.5]} 30. Rxd1 {[%clk 0:00:19.5]} 30... Kd7 {[%clk
0:00:39.5]} 31. Qd3 {[%clk 0:00:18]} 31... Qb5 {[%clk 0:00:31.2]} 32. Qf5+
{[%clk 0:00:17.1]} 32... Kd8 {[%clk 0:00:27.9]} 33. Bxf6+ {[%clk 0:00:16.5]}
33... gxf6 {[%clk 0:00:21.6]} 34. Qxf6+ {[%clk 0:00:17.4]} 34... Kd7 {[%clk
0:00:21.4]} 35. Qxh8 {[%clk 0:00:17.5]} 35... Bxd6 {[%clk 0:00:20.8]} 36. Qf6
{[%clk 0:00:14.7]} 36... Qc5 {[%clk 0:00:18.7]} 37. Rxd6+ {[%clk 0:00:11.3]}
37... Qxd6 {[%clk 0:00:17.8]} 38. Qxd6+ {[%clk 0:00:12.2]} 38... Kxd6 {[%clk
0:00:17.9]} 39. Kd2 {[%clk 0:00:13]} 39... Kd5 {[%clk 0:00:18.1]} 40. Ke3 {[%clk
0:00:13.5]} 40... a5 {[%clk 0:00:17.5]} 41. g3 {[%clk 0:00:14]} 41... a4 {[%clk
0:00:17.4]} 42. b3 {[%clk 0:00:14.5]} 42... a3 {[%clk 0:00:16.8]} 43. h3 {[%clk
0:00:14.8]} 43... Kd6 {[%clk 0:00:15.9]} 44. Ke4 {[%clk 0:00:15.1]} 44... Ke6
{[%clk 0:00:16.2]} 45. g4 {[%clk 0:00:15.6]} 45... h4 {[%clk 0:00:15.8]} 46. g5
{[%clk 0:00:15.2]} 46... Kd6 {[%clk 0:00:16]} 47. g6 {[%clk 0:00:15.6]} 47...
Ke6 {[%clk 0:00:16.6]} 48. g7 {[%clk 0:00:16.2]} 48... Kf7 {[%clk 0:00:16.7]}
49. Kxe5 {[%clk 0:00:16.7]} 49... Kxg7 {[%clk 0:00:17.4]} 50. Kd4 {[%clk
0:00:17.6]} 50... Kf6 {[%clk 0:00:17.7]} 51. Kc4 {[%clk 0:00:18.5]} 51... Kf5
{[%clk 0:00:18]} 52. Kxb4 {[%clk 0:00:19.4]} 52... Kf4 {[%clk 0:00:18.6]} 53. c4
{[%clk 0:00:20.2]} 53... Kg3 {[%clk 0:00:19.2]} 54. c5 {[%clk 0:00:21]} 54...
Kxh3 {[%clk 0:00:20]} 55. c6 {[%clk 0:00:21.7]} 55... Kg2 {[%clk 0:00:20.1]} 56.
c7 {[%clk 0:00:22.6]} 56... h3 {[%clk 0:00:20.6]} 57. c8=Q {[%clk 0:00:23.5]}
57... h2 {[%clk 0:00:21]} 58. Qc6+ {[%clk 0:00:24.2]} 58... Kg1 {[%clk
0:00:20.6]} 59. Qf3 {[%clk 0:00:24.3]} 59... h1=Q {[%clk 0:00:18.5]} 60. Qxh1+
{[%clk 0:00:24.3]} 60... Kf2 {[%clk 0:00:17.4]} 61. Kxa3 {[%clk 0:00:25.2]}
61... Ke2 {[%clk 0:00:16.9]} 62. b4 {[%clk 0:00:26.1]} 62... Kd3 {[%clk
0:00:17.1]} 63. Qc1 {[%clk 0:00:26.1]} 1-0

[Event "Early-Titled-Tuesday-Blitz-April-02-2024"]
[Site "Chess.com"]
[Date "2024.04.02"]
[Round "3"]
[White "Goffredo_Fofi"]
[Black "Sina_Movahed"]
[Result "1-0"]
[WhiteElo "2563"]
[BlackElo "2956"]
[TimeControl "180+1"]
[EndTime "8:28:25 PDT"]
[Termination "Goffredo_Fofi won by resignation"]

1. e4 {[%clk 0:03:00.9]} 1... c5 {[%clk 0:02:59.1]} 2. d3 {[%clk 0:03:00.9]}
2... e6 {[%clk 0:02:57.6]} 3. g3 {[%clk 0:03:00.8]} 3... d5 {[%clk 0:02:58]} 4.
Nd2 {[%clk 0:03:00.3]} 4... h5 {[%clk 0:02:55.8]} 5. Ngf3 {[%clk 0:02:59.9]}
5... Be7 {[%clk 0:02:54.2]} 6. h4 {[%clk 0:02:57.8]} 6... Nf6 {[%clk 0:02:53.9]}
7. Bg2 {[%clk 0:02:57.7]} 7... dxe4 {[%clk 0:02:47.5]} 8. dxe4 {[%clk
0:02:58.6]} 8... Nc6 {[%clk 0:02:47.5]} 9. O-O {[%clk 0:02:55.9]} 9... Qc7
{[%clk 0:02:45.9]} 10. Re1 {[%clk 0:02:55.2]} 10... e5 {[%clk 0:02:45.3]} 11. c3
{[%clk 0:02:52.1]} 11... O-O {[%clk 0:02:34.1]} 12. Nc4 {[%clk 0:02:49.7]} 12...
Ng4 {[%clk 0:02:33.3]} 13. a4 {[%clk 0:02:45.1]} 13... Be6 {[%clk 0:02:32.1]}
14. Qe2 {[%clk 0:02:39.4]} 14... Rad8 {[%clk 0:02:27.4]} 15. Nh2 {[%clk
0:02:37.9]} 15... Rd7 {[%clk 0:02:16.2]} 16. Nxg4 {[%clk 0:02:36.5]} 16... Bxg4
{[%clk 0:02:13.9]} 17. Bf3 {[%clk 0:02:36.5]} 17... Bxf3 {[%clk 0:01:44]} 18.
Qxf3 {[%clk 0:02:37.4]} 18... g6 {[%clk 0:01:42.6]} 19. Ne3 {[%clk 0:02:37.2]}
19... Qd6 {[%clk 0:01:38.9]} 20. Nd5 {[%clk 0:02:36.2]} 20... Qe6 {[%clk
0:01:38.8]} 21. Be3 {[%clk 0:02:32.2]} 21... f5 {[%clk 0:01:30.1]} 22. Nxe7+
{[%clk 0:01:47.8]} 22... Qxe7 {[%clk 0:01:29.3]} 23. exf5 {[%clk 0:01:47.9]}
23... e4 {[%clk 0:01:29.9]} 24. Qf4 {[%clk 0:01:39.4]} 24... Rxf5 {[%clk
0:01:27.3]} 25. Qh6 {[%clk 0:01:39.4]} 25... Ne5 {[%clk 0:01:19.4]} 26. Red1
{[%clk 0:01:32.5]} 26... Rd3 {[%clk 0:01:14.5]} 27. Bf4 {[%clk 0:01:24.6]} 27...
Qf8 {[%clk 0:00:42.6]} 28. Qxf8+ {[%clk 0:00:55.3]} 28... Kxf8 {[%clk
0:00:43.5]} 29. Bxe5 {[%clk 0:00:54.2]} 29... Rxe5 {[%clk 0:00:44.4]} 30. Kf1
{[%clk 0:00:54.5]} 30... c4 {[%clk 0:00:44]} 31. Ke2 {[%clk 0:00:51.4]} 31... a5
{[%clk 0:00:35.6]} 32. Rab1 {[%clk 0:00:50.3]} 32... Red5 {[%clk 0:00:34.6]} 33.
Rxd3 {[%clk 0:00:41.6]} 33... exd3+ {[%clk 0:00:35.5]} 34. Kd2 {[%clk
0:00:41.8]} 34... Re5 {[%clk 0:00:33.8]} 35. Re1 {[%clk 0:00:41.7]} 35... Rxe1
{[%clk 0:00:30.7]} 36. Kxe1 {[%clk 0:00:42.6]} 36... Ke7 {[%clk 0:00:31.2]} 37.
Kd2 {[%clk 0:00:34.6]} 37... Kd6 {[%clk 0:00:31.2]} 38. b3 {[%clk 0:00:32.4]}
38... cxb3 {[%clk 0:00:29.3]} 39. Kxd3 {[%clk 0:00:32.2]} 39... b5 {[%clk
0:00:22.6]} 40. axb5 {[%clk 0:00:31.2]} 40... a4 {[%clk 0:00:18.5]} 41. c4
{[%clk 0:00:26.1]} 41... a3 {[%clk 0:00:13.6]} 42. Kc3 {[%clk 0:00:26]} 42... a2
{[%clk 0:00:14.2]} 43. Kb2 {[%clk 0:00:26.2]} 43... Kc5 {[%clk 0:00:14.8]} 44.
f3 {[%clk 0:00:22.1]} 44... Kb6 {[%clk 0:00:14.3]} 45. g4 {[%clk 0:00:22.1]}
45... Kc5 {[%clk 0:00:11.4]} 46. gxh5 {[%clk 0:00:21.2]} 46... gxh5 {[%clk
0:00:10.6]} 47. f4 {[%clk 0:00:20.8]} 47... Kxc4 {[%clk 0:00:06.3]} 48. b6
{[%clk 0:00:20.4]} 48... Kd3 {[%clk 0:00:02.9]} 49. b7 {[%clk 0:00:19]} 49...
a1=Q+ {[%clk 0:00:03.8]} 50. Kxa1 {[%clk 0:00:19]} 1-0

[Event "Early-Titled-Tuesday-Blitz-April-02-2024"]
[Site "Chess.com"]
[Date "2024.04.02"]
[Round "3"]
[White "MaestroCheck"]
[Black "Alen_Yeremyann"]
[Result "0-1"]
[WhiteElo "2530"]
[BlackElo "2821"]
[TimeControl "180+1"]
[EndTime "8:28:25 PDT"]
[Termination "Alen_Yeremyann won by resignation"]

1. e4 {[%clk 0:03:00.9]} 1... c5 {[%clk 0:02:57.4]} 2. Nc3 {[%clk 0:03:00.5]}
2... Nc6 {[%clk 0:02:58]} 3. Bb5 {[%clk 0:03:00.7]} 3... e6 {[%clk 0:02:58.6]}
4. Bxc6 {[%clk 0:02:59.6]} 4... bxc6 {[%clk 0:02:59.4]} 5. f4 {[%clk 0:02:58.9]}
5... d5 {[%clk 0:02:57.9]} 6. d3 {[%clk 0:02:59]} 6... Nf6 {[%clk 0:02:56.2]} 7.
Nf3 {[%clk 0:02:53]} 7... c4 {[%clk 0:02:54.2]} 8. e5 {[%clk 0:02:48.8]} 8...
Nd7 {[%clk 0:02:54.8]} 9. dxc4 {[%clk 0:02:49.2]} 9... Ba6 {[%clk 0:02:55]} 10.
Nd4 {[%clk 0:02:19.6]} 10... Qb6 {[%clk 0:02:44.1]} 11. Nce2 {[%clk 0:01:49.3]}
11... c5 {[%clk 0:02:42]} 12. Nb5 {[%clk 0:01:46.6]} 12... Bxb5 {[%clk
0:02:42.4]} 13. cxb5 {[%clk 0:01:46.7]} 13... Qxb5 {[%clk 0:02:43.1]} 14. O-O
{[%clk 0:01:47.1]} 14... g6 {[%clk 0:02:43]} 15. c3 {[%clk 0:01:46]} 15... h5
{[%clk 0:02:42.5]} 16. a4 {[%clk 0:01:40.4]} 16... Qb6 {[%clk 0:02:40.8]} 17. c4
{[%clk 0:01:37.4]} 17... d4 {[%clk 0:02:38.4]} 18. Ng3 {[%clk 0:01:37.3]} 18...
Be7 {[%clk 0:02:36.1]} 19. Ne4 {[%clk 0:01:36.4]} 19... a5 {[%clk 0:02:36.7]}
20. Ra3 {[%clk 0:01:35.3]} 20... Nb8 {[%clk 0:02:36.9]} 21. Rb3 {[%clk
0:01:35.3]} 21... Qc7 {[%clk 0:02:37.5]} 22. Rb5 {[%clk 0:01:34.5]} 22... Na6
{[%clk 0:02:35.3]} 23. Bd2 {[%clk 0:01:32.3]} 23... O-O {[%clk 0:02:34.9]} 24.
Bxa5 {[%clk 0:01:32.1]} 24... Qc6 {[%clk 0:02:34.5]} 25. Qd3 {[%clk 0:01:25.1]}
25... Kg7 {[%clk 0:02:28.7]} 26. Rb6 {[%clk 0:01:20.1]} 26... Qd7 {[%clk
0:02:25.4]} 27. b3 {[%clk 0:01:14.7]} 27... Rfb8 {[%clk 0:02:13.5]} 28. Rxb8
{[%clk 0:01:11.5]} 28... Rxb8 {[%clk 0:02:13.8]} 29. h3 {[%clk 0:01:05.5]} 29...
Qb7 {[%clk 0:02:09.5]} 30. Rb1 {[%clk 0:01:03.6]} 30... Nb4 {[%clk 0:02:06.6]}
31. Bxb4 {[%clk 0:01:03.1]} 31... Qxb4 {[%clk 0:02:07.4]} 32. Nd2 {[%clk
0:00:59.8]} 32... Ra8 {[%clk 0:02:06.2]} 33. Nf3 {[%clk 0:00:51.3]} 33... h4
{[%clk 0:02:01.7]} 34. Ne1 {[%clk 0:00:49.9]} 34... Qa3 {[%clk 0:01:54.4]} 35.
Qc2 {[%clk 0:00:48.7]} 35... Qb4 {[%clk 0:01:49.1]} 36. Nd3 {[%clk 0:00:48.6]}
36... Qb6 {[%clk 0:01:48.5]} 37. Qe2 {[%clk 0:00:45.3]} 37... Rxa4 {[%clk
0:01:47.3]} 38. Qc2 {[%clk 0:00:39.6]} 38... Ra3 {[%clk 0:01:46.1]} 39. Qb2
{[%clk 0:00:39.1]} 39... Qa7 {[%clk 0:01:45.3]} 40. Qc1 {[%clk 0:00:35.3]} 40...
Ra2 {[%clk 0:01:42.9]} 41. Kh2 {[%clk 0:00:34.9]} 41... Qa8 {[%clk 0:01:41.3]}
42. Qf1 {[%clk 0:00:35.3]} 42... Qe4 {[%clk 0:01:40]} 43. Re1 {[%clk 0:00:31.3]}
43... Qb7 {[%clk 0:01:40.5]} 44. Rb1 {[%clk 0:00:29.7]} 44... Rd2 {[%clk
0:01:39.6]} 45. Rd1 {[%clk 0:00:26.2]} 45... Rc2 {[%clk 0:01:32.7]} 46. Rb1
{[%clk 0:00:24]} 46... Qa8 {[%clk 0:01:17.4]} 47. Rc1 {[%clk 0:00:22.6]} 47...
Ra2 {[%clk 0:01:14.1]} 48. Rb1 {[%clk 0:00:20.2]} 48... Qc6 {[%clk 0:01:13.2]}
49. Kg1 {[%clk 0:00:18.5]} 49... g5 {[%clk 0:01:09.1]} 50. fxg5 {[%clk
0:00:17.4]} 50... Bxg5 {[%clk 0:01:10]} 51. Ra1 {[%clk 0:00:17.9]} 51... Be3+
{[%clk 0:01:09.1]} 52. Kh1 {[%clk 0:00:18.4]} 52... Rd2 {[%clk 0:01:07]} 53. Ra7
{[%clk 0:00:16.1]} 53... Qe8 {[%clk 0:00:57.5]} 54. Nxc5 {[%clk 0:00:16.4]}
54... Rf2 {[%clk 0:00:57.9]} 55. Qd1 {[%clk 0:00:16]} 55... Qc6 {[%clk
0:00:56.8]} 56. Qg4+ {[%clk 0:00:15.5]} 56... Kf8 {[%clk 0:00:55.8]} 57. Nd7+
{[%clk 0:00:13.3]} 57... Qxd7 {[%clk 0:00:34.5]} 58. Rc7 {[%clk 0:00:13.1]}
58... Rf1+ {[%clk 0:00:31.7]} 59. Kh2 {[%clk 0:00:13]} 59... Bg1+ {[%clk
0:00:32.4]} 60. Kh1 {[%clk 0:00:13.7]} 60... Bf2+ {[%clk 0:00:33.1]} 61. Kh2
{[%clk 0:00:14.4]} 61... Bg3+ {[%clk 0:00:34]} 62. Qxg3 {[%clk 0:00:11.7]} 62...
hxg3+ {[%clk 0:00:34.9]} 63. Kxg3 {[%clk 0:00:11.9]} 63... Qxc7 {[%clk
0:00:35.1]} 0-1